{"text_format":"3","workbook":"xlsx","n_sheets":3,"sheets":["Jurnal de parcurs","Date de jurnal","calcule"],"not_rendered":{"charts":1,"defined_names":17},"read":"whole","date_system":"1900"}

{"sheet":"Jurnal de parcurs","index":0,"n_rows":29,"n_cols":5,"rows_kept":29,"merged":[[0,1,1,5]]}
[null,"JURNAL DE PARCURS"]
{"$rows_empty":9}
[null,null,"DECONTABIL",null,"TOTAL"]
[null,null,"KILOMETRI",null,"DECONTARE"]
[]
[]
[]
[]
[null,null,"2012-05-01",null,"2012-05-10"]
[]
[null,null,"PERIOADĂ",null,"PERIOADĂ"]
[null,null,"PORNIRE",null,"TERMINARE"]
[]
[]
[]
[]
[]
[null,null,54,null,{"v":9800,"d":"9,800"}]
[]
[null,null,"DECONTARE",null,"COMBUSTIBIL ANTERIOR"]
[null,null,"consum/kilometru",null,"KILOMETRAJ"]

{"sheet":"Date de jurnal","index":1,"n_rows":19,"n_cols":15,"rows_kept":19,"merged":[[0,1,1,4]]}
[null,"JURNAL DE PARCURS"]
[{"$nulls":14}," "]
[]
[]
[null,"DATĂ","ACTIVITATE","KILOMETRAJ 1","LOCAŢIE","KILOMETRAJ 2","DESTINAŢIE","DECONTARE","LITRI","COSTURI","KILOMETRI","Consum/100 km","consum/kilometru","NOTE"]
[null,"2012-05-01","Excursie",{"v":10123,"d":"10,123"},"Braşov - Str. Principală",{"v":10130,"d":"10,130"},null,null,15.56,{"v":64.11,"d":"64.11 lei"},{"$f":"kilometri","v":7},{"$f":"IF(OR(LEN(date[[#This Row],[KILOMETRAJ 2]]),date[[#This Row],[KILOMETRAJ 1]]=\"\"),\"\",IFERROR(date[[#This Row],[KILOMETRI]]/date[[#This Row],[LITRI]],\"\"))","v":""},{"$f":"IF(date[[#This Row],[Consum/100 km]]=\"\",\"\",100*date[[#This Row],[COSTURI]]/date[[#This Row],[KILOMETRI]])","v":""}]
[null,"2012-05-01","Excursie",{"v":10130,"d":"10,130"},"Birou",{"v":10200,"d":"10,200"},"Strada Nucilor nr. 345","Da",null,"",{"$f":"kilometri","v":70},{"$f":"IF(OR(LEN(date[[#This Row],[KILOMETRAJ 2]]),date[[#This Row],[KILOMETRAJ 1]]=\"\"),\"\",IFERROR(date[[#This Row],[KILOMETRI]]/date[[#This Row],[LITRI]],\"\"))","v":""},{"$f":"IF(date[[#This Row],[Consum/100 km]]=\"\",\"\",100*date[[#This Row],[COSTURI]]/date[[#This Row],[KILOMETRI]])","v":""}]
[null,"2012-05-01","Excursie",{"v":10200,"d":"10,200"},"Otopeni",{"v":10285,"d":"10,285"},"Birou","Da",null,"",{"$f":"kilometri","v":85},{"$f":"IF(OR(LEN(date[[#This Row],[KILOMETRAJ 2]]),date[[#This Row],[KILOMETRAJ 1]]=\"\"),\"\",IFERROR(date[[#This Row],[KILOMETRI]]/date[[#This Row],[LITRI]],\"\"))","v":""},{"$f":"IF(date[[#This Row],[Consum/100 km]]=\"\",\"\",100*date[[#This Row],[COSTURI]]/date[[#This Row],[KILOMETRI]])","v":""}]
[null,"2012-05-02","Excursie",{"v":10285,"d":"10,285"},"Birou",{"v":10450,"d":"10,450"},"Constanţa","Da",null,"",{"$f":"kilometri","v":165},{"$f":"IF(OR(LEN(date[[#This Row],[KILOMETRAJ 2]]),date[[#This Row],[KILOMETRAJ 1]]=\"\"),\"\",IFERROR(date[[#This Row],[KILOMETRI]]/date[[#This Row],[LITRI]],\"\"))","v":""},{"$f":"IF(date[[#This Row],[Consum/100 km]]=\"\",\"\",100*date[[#This Row],[COSTURI]]/date[[#This Row],[KILOMETRI]])","v":""}]
[null,"2012-05-02","Benzină",{"v":10450,"d":"10,450"},"Basarabi",{"$nulls":3},{"v":11.2,"d":"11.20"},{"v":55.42,"d":"55.42 lei"},{"$f":"kilometri","v":650},{"$f":"IF(OR(LEN(date[[#This Row],[KILOMETRAJ 2]]),date[[#This Row],[KILOMETRAJ 1]]=\"\"),\"\",IFERROR(date[[#This Row],[KILOMETRI]]/date[[#This Row],[LITRI]],\"\"))","v":{"v":58.03571428571429,"d":"58.0"}},{"$f":"IF(date[[#This Row],[Consum/100 km]]=\"\",\"\",100*date[[#This Row],[COSTURI]]/date[[#This Row],[KILOMETRI]])","v":{"v":8.526153846153846,"d":"8.5"}}]
[null,"2012-05-02","Excursie",{"v":10500,"d":"10,500"},"Constanţa",{"v":10518,"d":"10,518"},"Birou","Da",null,"",{"$f":"kilometri","v":18},{"$f":"IF(OR(LEN(date[[#This Row],[KILOMETRAJ 2]]),date[[#This Row],[KILOMETRAJ 1]]=\"\"),\"\",IFERROR(date[[#This Row],[KILOMETRI]]/date[[#This Row],[LITRI]],\"\"))","v":""},{"$f":"IF(date[[#This Row],[Consum/100 km]]=\"\",\"\",100*date[[#This Row],[COSTURI]]/date[[#This Row],[KILOMETRI]])","v":""}]
[null,"2012-05-03","Excursie",{"v":10518,"d":"10,518"},"Birou",{"v":10745,"d":"10,745"},"Birou","Da",null,"",{"$f":"kilometri","v":227},{"$f":"IF(OR(LEN(date[[#This Row],[KILOMETRAJ 2]]),date[[#This Row],[KILOMETRAJ 1]]=\"\"),\"\",IFERROR(date[[#This Row],[KILOMETRI]]/date[[#This Row],[LITRI]],\"\"))","v":""},{"$f":"IF(date[[#This Row],[Consum/100 km]]=\"\",\"\",100*date[[#This Row],[COSTURI]]/date[[#This Row],[KILOMETRI]])","v":""}]
[null,"2012-05-04","Benzină",{"v":10745,"d":"10,745"},"Braşov - Str. Principală",{"$nulls":3},{"v":16.6,"d":"16.60"},{"v":69.24,"d":"69.24 lei"},{"$f":"kilometri","v":295},{"$f":"IF(OR(LEN(date[[#This Row],[KILOMETRAJ 2]]),date[[#This Row],[KILOMETRAJ 1]]=\"\"),\"\",IFERROR(date[[#This Row],[KILOMETRI]]/date[[#This Row],[LITRI]],\"\"))","v":{"v":17.771084337349397,"d":"17.8"}},{"$f":"IF(date[[#This Row],[Consum/100 km]]=\"\",\"\",100*date[[#This Row],[COSTURI]]/date[[#This Row],[KILOMETRI]])","v":{"v":23.471186440677965,"d":"23.5"}}]
[null,"2012-05-04","Excursie",{"v":10745,"d":"10,745"},"Birou",{"v":10800,"d":"10,800"},"Piatra Neamţ","Da",null,"",{"$f":"kilometri","v":55},{"$f":"IF(OR(LEN(date[[#This Row],[KILOMETRAJ 2]]),date[[#This Row],[KILOMETRAJ 1]]=\"\"),\"\",IFERROR(date[[#This Row],[KILOMETRI]]/date[[#This Row],[LITRI]],\"\"))","v":""},{"$f":"IF(date[[#This Row],[Consum/100 km]]=\"\",\"\",100*date[[#This Row],[COSTURI]]/date[[#This Row],[KILOMETRI]])","v":""}]
[null,"2012-05-04","Excursie",{"v":10800,"d":"10,800"},"Piatra Neamţ",{"v":10875,"d":"10,875"},"Birou","Da",null,"",{"$f":"kilometri","v":75},{"$f":"IF(OR(LEN(date[[#This Row],[KILOMETRAJ 2]]),date[[#This Row],[KILOMETRAJ 1]]=\"\"),\"\",IFERROR(date[[#This Row],[KILOMETRI]]/date[[#This Row],[LITRI]],\"\"))","v":""},{"$f":"IF(date[[#This Row],[Consum/100 km]]=\"\",\"\",100*date[[#This Row],[COSTURI]]/date[[#This Row],[KILOMETRI]])","v":""}]
[null,"2012-05-07","Excursie",{"v":10875,"d":"10,875"},"Birou",{"v":10921,"d":"10,921"},"Strada Nucilor nr. 345","Da",null,"",{"$f":"kilometri","v":46},{"$f":"IF(OR(LEN(date[[#This Row],[KILOMETRAJ 2]]),date[[#This Row],[KILOMETRAJ 1]]=\"\"),\"\",IFERROR(date[[#This Row],[KILOMETRI]]/date[[#This Row],[LITRI]],\"\"))","v":""},{"$f":"IF(date[[#This Row],[Consum/100 km]]=\"\",\"\",100*date[[#This Row],[COSTURI]]/date[[#This Row],[KILOMETRI]])","v":""}]
[null,"2012-05-07","Excursie",{"v":10921,"d":"10,921"},"Otopeni",{"v":10969,"d":"10,969"},"Birou","Da",null,"",{"$f":"kilometri","v":48},{"$f":"IF(OR(LEN(date[[#This Row],[KILOMETRAJ 2]]),date[[#This Row],[KILOMETRAJ 1]]=\"\"),\"\",IFERROR(date[[#This Row],[KILOMETRI]]/date[[#This Row],[LITRI]],\"\"))","v":""},{"$f":"IF(date[[#This Row],[Consum/100 km]]=\"\",\"\",100*date[[#This Row],[COSTURI]]/date[[#This Row],[KILOMETRI]])","v":""}]
[null,"2012-05-09","Excursie",{"v":10969,"d":"10,969"},"Birou",{"v":11000,"d":"11,000"},"Tulcea","Da",null,"",{"$f":"kilometri","v":31},{"$f":"IF(OR(LEN(date[[#This Row],[KILOMETRAJ 2]]),date[[#This Row],[KILOMETRAJ 1]]=\"\"),\"\",IFERROR(date[[#This Row],[KILOMETRI]]/date[[#This Row],[LITRI]],\"\"))","v":""},{"$f":"IF(date[[#This Row],[Consum/100 km]]=\"\",\"\",100*date[[#This Row],[COSTURI]]/date[[#This Row],[KILOMETRI]])","v":""}]
[null,"2012-05-09","Excursie",{"v":11000,"d":"11,000"},"Tulcea",{"v":11100,"d":"11,100"},"Acasă","Nu",null,"",{"$f":"kilometri","v":100},{"$f":"IF(OR(LEN(date[[#This Row],[KILOMETRAJ 2]]),date[[#This Row],[KILOMETRAJ 1]]=\"\"),\"\",IFERROR(date[[#This Row],[KILOMETRI]]/date[[#This Row],[LITRI]],\"\"))","v":""},{"$f":"IF(date[[#This Row],[Consum/100 km]]=\"\",\"\",100*date[[#This Row],[COSTURI]]/date[[#This Row],[KILOMETRI]])","v":""}]

{"sheet":"calcule","index":2,"n_rows":69,"n_cols":13,"rows_kept":69,"hidden":true}
["*** Această foaie va rămâne ascunsă ***"]
[]
[]
[]
[]
[{"$nulls":8},{"$f":"OFFSET(I9,,AxăSecundară=\"Cost benzină\")","v":"consum/kilometru"}]
[{"$nulls":12},2]
[{"$nulls":7},"Excursie","Benzină","Benzină",null,"Axă secundă:  ",{"$f":"REPT(\"Consum/100 km\",M7=1)&REPT(\"Cost benzină\",M7=2)","v":"Cost benzină"}]
[{"$nulls":7},"Kilometri parcurşi","Consum/100 km","consum/kilometru"]
[null,null,"Kilometri decontabili:  ",{"$f":"SUMIFS(date[KILOMETRI],date[DECONTARE],\"Da\",date[DATĂ],\">=\"&ÎnceperePerioadă,date[DATĂ],\"<=\"&ÎncheierePerioadă)","v":820},null,1,{"$f":"ÎnceperePerioadă","v":"2012-05-01"},{"$f":"SUMIFS(date[KILOMETRI],date[DATĂ],G10,date[ACTIVITATE],$H$8)","v":162},{"$f":"IFERROR(AVERAGEIFS(date[Consum/100 km],date[DATĂ],G10,date[ACTIVITATE],$I$8),NA())","v":{"$error":"#N/A"}},{"$f":"IFERROR(AVERAGEIFS(date[consum/kilometru],date[DATĂ],G10,date[ACTIVITATE],$J$8),NA())","v":{"$error":"#N/A"}}]
[null,null,"Decontare totală:  ",{"$f":"D10*RambursarePerKm/100","v":{"v":442.8,"d":"442.80 lei"}},null,2,{"$f":"G10+1","v":"2012-05-02"},{"$f":"SUMIFS(date[KILOMETRI],date[DATĂ],G11,date[ACTIVITATE],$H$8)","v":183},{"$f":"IFERROR(AVERAGEIFS(date[Consum/100 km],date[DATĂ],G11,date[ACTIVITATE],$I$8),NA())","v":{"v":58.03571428571429,"d":"58.0"}},{"$f":"IFERROR(AVERAGEIFS(date[consum/kilometru],date[DATĂ],G11,date[ACTIVITATE],$J$8),NA())","v":{"v":8.526153846153846,"d":"8.5"}}]
[{"$nulls":5},3,"2012-05-03",{"$f":"SUMIFS(date[KILOMETRI],date[DATĂ],G12,date[ACTIVITATE],$H$8)","v":227},{"$f":"IFERROR(AVERAGEIFS(date[Consum/100 km],date[DATĂ],G12,date[ACTIVITATE],$I$8),NA())","v":{"$error":"#N/A"}},{"$f":"IFERROR(AVERAGEIFS(date[consum/kilometru],date[DATĂ],G12,date[ACTIVITATE],$J$8),NA())","v":{"$error":"#N/A"}}]
[{"$nulls":5},4,"2012-05-04",{"$f":"SUMIFS(date[KILOMETRI],date[DATĂ],G13,date[ACTIVITATE],$H$8)","v":130},{"$f":"IFERROR(AVERAGEIFS(date[Consum/100 km],date[DATĂ],G13,date[ACTIVITATE],$I$8),NA())","v":{"v":17.771084337349397,"d":"17.8"}},{"$f":"IFERROR(AVERAGEIFS(date[consum/kilometru],date[DATĂ],G13,date[ACTIVITATE],$J$8),NA())","v":{"v":23.471186440677965,"d":"23.5"}}]
[{"$nulls":5},5,"2012-05-05",{"$f":"SUMIFS(date[KILOMETRI],date[DATĂ],G14,date[ACTIVITATE],$H$8)","v":0},{"$f":"IFERROR(AVERAGEIFS(date[Consum/100 km],date[DATĂ],G14,date[ACTIVITATE],$I$8),NA())","v":{"$error":"#N/A"}},{"$f":"IFERROR(AVERAGEIFS(date[consum/kilometru],date[DATĂ],G14,date[ACTIVITATE],$J$8),NA())","v":{"$error":"#N/A"}}]
[{"$nulls":5},6,"2012-05-06",{"$f":"SUMIFS(date[KILOMETRI],date[DATĂ],G15,date[ACTIVITATE],$H$8)","v":0},{"$f":"IFERROR(AVERAGEIFS(date[Consum/100 km],date[DATĂ],G15,date[ACTIVITATE],$I$8),NA())","v":{"$error":"#N/A"}},{"$f":"IFERROR(AVERAGEIFS(date[consum/kilometru],date[DATĂ],G15,date[ACTIVITATE],$J$8),NA())","v":{"$error":"#N/A"}}]
[{"$nulls":5},7,"2012-05-07",{"$f":"SUMIFS(date[KILOMETRI],date[DATĂ],G16,date[ACTIVITATE],$H$8)","v":94},{"$f":"IFERROR(AVERAGEIFS(date[Consum/100 km],date[DATĂ],G16,date[ACTIVITATE],$I$8),NA())","v":{"$error":"#N/A"}},{"$f":"IFERROR(AVERAGEIFS(date[consum/kilometru],date[DATĂ],G16,date[ACTIVITATE],$J$8),NA())","v":{"$error":"#N/A"}}]
[{"$nulls":5},8,"2012-05-08",{"$f":"SUMIFS(date[KILOMETRI],date[DATĂ],G17,date[ACTIVITATE],$H$8)","v":0},{"$f":"IFERROR(AVERAGEIFS(date[Consum/100 km],date[DATĂ],G17,date[ACTIVITATE],$I$8),NA())","v":{"$error":"#N/A"}},{"$f":"IFERROR(AVERAGEIFS(date[consum/kilometru],date[DATĂ],G17,date[ACTIVITATE],$J$8),NA())","v":{"$error":"#N/A"}}]
[{"$nulls":5},9,"2012-05-09",{"$f":"SUMIFS(date[KILOMETRI],date[DATĂ],G18,date[ACTIVITATE],$H$8)","v":131},{"$f":"IFERROR(AVERAGEIFS(date[Consum/100 km],date[DATĂ],G18,date[ACTIVITATE],$I$8),NA())","v":{"$error":"#N/A"}},{"$f":"IFERROR(AVERAGEIFS(date[consum/kilometru],date[DATĂ],G18,date[ACTIVITATE],$J$8),NA())","v":{"$error":"#N/A"}}]
[{"$nulls":5},10,"2012-05-10",{"$f":"SUMIFS(date[KILOMETRI],date[DATĂ],G19,date[ACTIVITATE],$H$8)","v":0},{"$f":"IFERROR(AVERAGEIFS(date[Consum/100 km],date[DATĂ],G19,date[ACTIVITATE],$I$8),NA())","v":{"$error":"#N/A"}},{"$f":"IFERROR(AVERAGEIFS(date[consum/kilometru],date[DATĂ],G19,date[ACTIVITATE],$J$8),NA())","v":{"$error":"#N/A"}}]
[{"$nulls":5},11,"2012-05-11",{"$f":"SUMIFS(date[KILOMETRI],date[DATĂ],G20,date[ACTIVITATE],$H$8)","v":0},{"$f":"IFERROR(AVERAGEIFS(date[Consum/100 km],date[DATĂ],G20,date[ACTIVITATE],$I$8),NA())","v":{"$error":"#N/A"}},{"$f":"IFERROR(AVERAGEIFS(date[consum/kilometru],date[DATĂ],G20,date[ACTIVITATE],$J$8),NA())","v":{"$error":"#N/A"}}]
[{"$nulls":5},12,"2012-05-12",{"$f":"SUMIFS(date[KILOMETRI],date[DATĂ],G21,date[ACTIVITATE],$H$8)","v":0},{"$f":"IFERROR(AVERAGEIFS(date[Consum/100 km],date[DATĂ],G21,date[ACTIVITATE],$I$8),NA())","v":{"$error":"#N/A"}},{"$f":"IFERROR(AVERAGEIFS(date[consum/kilometru],date[DATĂ],G21,date[ACTIVITATE],$J$8),NA())","v":{"$error":"#N/A"}}]
[{"$nulls":5},13,"2012-05-13",{"$f":"SUMIFS(date[KILOMETRI],date[DATĂ],G22,date[ACTIVITATE],$H$8)","v":0},{"$f":"IFERROR(AVERAGEIFS(date[Consum/100 km],date[DATĂ],G22,date[ACTIVITATE],$I$8),NA())","v":{"$error":"#N/A"}},{"$f":"IFERROR(AVERAGEIFS(date[consum/kilometru],date[DATĂ],G22,date[ACTIVITATE],$J$8),NA())","v":{"$error":"#N/A"}}]
[{"$nulls":5},14,"2012-05-14",{"$f":"SUMIFS(date[KILOMETRI],date[DATĂ],G23,date[ACTIVITATE],$H$8)","v":0},{"$f":"IFERROR(AVERAGEIFS(date[Consum/100 km],date[DATĂ],G23,date[ACTIVITATE],$I$8),NA())","v":{"$error":"#N/A"}},{"$f":"IFERROR(AVERAGEIFS(date[consum/kilometru],date[DATĂ],G23,date[ACTIVITATE],$J$8),NA())","v":{"$error":"#N/A"}}]
[{"$nulls":5},15,"2012-05-15",{"$f":"SUMIFS(date[KILOMETRI],date[DATĂ],G24,date[ACTIVITATE],$H$8)","v":0},{"$f":"IFERROR(AVERAGEIFS(date[Consum/100 km],date[DATĂ],G24,date[ACTIVITATE],$I$8),NA())","v":{"$error":"#N/A"}},{"$f":"IFERROR(AVERAGEIFS(date[consum/kilometru],date[DATĂ],G24,date[ACTIVITATE],$J$8),NA())","v":{"$error":"#N/A"}}]
[{"$nulls":5},16,"2012-05-16",{"$f":"SUMIFS(date[KILOMETRI],date[DATĂ],G25,date[ACTIVITATE],$H$8)","v":0},{"$f":"IFERROR(AVERAGEIFS(date[Consum/100 km],date[DATĂ],G25,date[ACTIVITATE],$I$8),NA())","v":{"$error":"#N/A"}},{"$f":"IFERROR(AVERAGEIFS(date[consum/kilometru],date[DATĂ],G25,date[ACTIVITATE],$J$8),NA())","v":{"$error":"#N/A"}}]
[{"$nulls":5},17,"2012-05-17",{"$f":"SUMIFS(date[KILOMETRI],date[DATĂ],G26,date[ACTIVITATE],$H$8)","v":0},{"$f":"IFERROR(AVERAGEIFS(date[Consum/100 km],date[DATĂ],G26,date[ACTIVITATE],$I$8),NA())","v":{"$error":"#N/A"}},{"$f":"IFERROR(AVERAGEIFS(date[consum/kilometru],date[DATĂ],G26,date[ACTIVITATE],$J$8),NA())","v":{"$error":"#N/A"}}]
[{"$nulls":5},18,"2012-05-18",{"$f":"SUMIFS(date[KILOMETRI],date[DATĂ],G27,date[ACTIVITATE],$H$8)","v":0},{"$f":"IFERROR(AVERAGEIFS(date[Consum/100 km],date[DATĂ],G27,date[ACTIVITATE],$I$8),NA())","v":{"$error":"#N/A"}},{"$f":"IFERROR(AVERAGEIFS(date[consum/kilometru],date[DATĂ],G27,date[ACTIVITATE],$J$8),NA())","v":{"$error":"#N/A"}}]
[{"$nulls":5},19,"2012-05-19",{"$f":"SUMIFS(date[KILOMETRI],date[DATĂ],G28,date[ACTIVITATE],$H$8)","v":0},{"$f":"IFERROR(AVERAGEIFS(date[Consum/100 km],date[DATĂ],G28,date[ACTIVITATE],$I$8),NA())","v":{"$error":"#N/A"}},{"$f":"IFERROR(AVERAGEIFS(date[consum/kilometru],date[DATĂ],G28,date[ACTIVITATE],$J$8),NA())","v":{"$error":"#N/A"}}]
[{"$nulls":5},20,"2012-05-20",{"$f":"SUMIFS(date[KILOMETRI],date[DATĂ],G29,date[ACTIVITATE],$H$8)","v":0},{"$f":"IFERROR(AVERAGEIFS(date[Consum/100 km],date[DATĂ],G29,date[ACTIVITATE],$I$8),NA())","v":{"$error":"#N/A"}},{"$f":"IFERROR(AVERAGEIFS(date[consum/kilometru],date[DATĂ],G29,date[ACTIVITATE],$J$8),NA())","v":{"$error":"#N/A"}}]
[{"$nulls":5},21,"2012-05-21",{"$f":"SUMIFS(date[KILOMETRI],date[DATĂ],G30,date[ACTIVITATE],$H$8)","v":0},{"$f":"IFERROR(AVERAGEIFS(date[Consum/100 km],date[DATĂ],G30,date[ACTIVITATE],$I$8),NA())","v":{"$error":"#N/A"}},{"$f":"IFERROR(AVERAGEIFS(date[consum/kilometru],date[DATĂ],G30,date[ACTIVITATE],$J$8),NA())","v":{"$error":"#N/A"}}]
[{"$nulls":5},22,"2012-05-22",{"$f":"SUMIFS(date[KILOMETRI],date[DATĂ],G31,date[ACTIVITATE],$H$8)","v":0},{"$f":"IFERROR(AVERAGEIFS(date[Consum/100 km],date[DATĂ],G31,date[ACTIVITATE],$I$8),NA())","v":{"$error":"#N/A"}},{"$f":"IFERROR(AVERAGEIFS(date[consum/kilometru],date[DATĂ],G31,date[ACTIVITATE],$J$8),NA())","v":{"$error":"#N/A"}}]
[{"$nulls":5},23,"2012-05-23",{"$f":"SUMIFS(date[KILOMETRI],date[DATĂ],G32,date[ACTIVITATE],$H$8)","v":0},{"$f":"IFERROR(AVERAGEIFS(date[Consum/100 km],date[DATĂ],G32,date[ACTIVITATE],$I$8),NA())","v":{"$error":"#N/A"}},{"$f":"IFERROR(AVERAGEIFS(date[consum/kilometru],date[DATĂ],G32,date[ACTIVITATE],$J$8),NA())","v":{"$error":"#N/A"}}]
[{"$nulls":5},24,"2012-05-24",{"$f":"SUMIFS(date[KILOMETRI],date[DATĂ],G33,date[ACTIVITATE],$H$8)","v":0},{"$f":"IFERROR(AVERAGEIFS(date[Consum/100 km],date[DATĂ],G33,date[ACTIVITATE],$I$8),NA())","v":{"$error":"#N/A"}},{"$f":"IFERROR(AVERAGEIFS(date[consum/kilometru],date[DATĂ],G33,date[ACTIVITATE],$J$8),NA())","v":{"$error":"#N/A"}}]
[{"$nulls":5},25,"2012-05-25",{"$f":"SUMIFS(date[KILOMETRI],date[DATĂ],G34,date[ACTIVITATE],$H$8)","v":0},{"$f":"IFERROR(AVERAGEIFS(date[Consum/100 km],date[DATĂ],G34,date[ACTIVITATE],$I$8),NA())","v":{"$error":"#N/A"}},{"$f":"IFERROR(AVERAGEIFS(date[consum/kilometru],date[DATĂ],G34,date[ACTIVITATE],$J$8),NA())","v":{"$error":"#N/A"}}]
[{"$nulls":5},26,"2012-05-26",{"$f":"SUMIFS(date[KILOMETRI],date[DATĂ],G35,date[ACTIVITATE],$H$8)","v":0},{"$f":"IFERROR(AVERAGEIFS(date[Consum/100 km],date[DATĂ],G35,date[ACTIVITATE],$I$8),NA())","v":{"$error":"#N/A"}},{"$f":"IFERROR(AVERAGEIFS(date[consum/kilometru],date[DATĂ],G35,date[ACTIVITATE],$J$8),NA())","v":{"$error":"#N/A"}}]
[{"$nulls":5},27,"2012-05-27",{"$f":"SUMIFS(date[KILOMETRI],date[DATĂ],G36,date[ACTIVITATE],$H$8)","v":0},{"$f":"IFERROR(AVERAGEIFS(date[Consum/100 km],date[DATĂ],G36,date[ACTIVITATE],$I$8),NA())","v":{"$error":"#N/A"}},{"$f":"IFERROR(AVERAGEIFS(date[consum/kilometru],date[DATĂ],G36,date[ACTIVITATE],$J$8),NA())","v":{"$error":"#N/A"}}]
[{"$nulls":5},28,"2012-05-28",{"$f":"SUMIFS(date[KILOMETRI],date[DATĂ],G37,date[ACTIVITATE],$H$8)","v":0},{"$f":"IFERROR(AVERAGEIFS(date[Consum/100 km],date[DATĂ],G37,date[ACTIVITATE],$I$8),NA())","v":{"$error":"#N/A"}},{"$f":"IFERROR(AVERAGEIFS(date[consum/kilometru],date[DATĂ],G37,date[ACTIVITATE],$J$8),NA())","v":{"$error":"#N/A"}}]
[{"$nulls":5},29,"2012-05-29",{"$f":"SUMIFS(date[KILOMETRI],date[DATĂ],G38,date[ACTIVITATE],$H$8)","v":0},{"$f":"IFERROR(AVERAGEIFS(date[Consum/100 km],date[DATĂ],G38,date[ACTIVITATE],$I$8),NA())","v":{"$error":"#N/A"}},{"$f":"IFERROR(AVERAGEIFS(date[consum/kilometru],date[DATĂ],G38,date[ACTIVITATE],$J$8),NA())","v":{"$error":"#N/A"}}]
[{"$nulls":5},30,"2012-05-30",{"$f":"SUMIFS(date[KILOMETRI],date[DATĂ],G39,date[ACTIVITATE],$H$8)","v":0},{"$f":"IFERROR(AVERAGEIFS(date[Consum/100 km],date[DATĂ],G39,date[ACTIVITATE],$I$8),NA())","v":{"$error":"#N/A"}},{"$f":"IFERROR(AVERAGEIFS(date[consum/kilometru],date[DATĂ],G39,date[ACTIVITATE],$J$8),NA())","v":{"$error":"#N/A"}}]
[{"$nulls":5},31,"2012-05-31",{"$f":"SUMIFS(date[KILOMETRI],date[DATĂ],G40,date[ACTIVITATE],$H$8)","v":0},{"$f":"IFERROR(AVERAGEIFS(date[Consum/100 km],date[DATĂ],G40,date[ACTIVITATE],$I$8),NA())","v":{"$error":"#N/A"}},{"$f":"IFERROR(AVERAGEIFS(date[consum/kilometru],date[DATĂ],G40,date[ACTIVITATE],$J$8),NA())","v":{"$error":"#N/A"}}]
[{"$nulls":5},32,"2012-06-01",{"$f":"SUMIFS(date[KILOMETRI],date[DATĂ],G41,date[ACTIVITATE],$H$8)","v":0},{"$f":"IFERROR(AVERAGEIFS(date[Consum/100 km],date[DATĂ],G41,date[ACTIVITATE],$I$8),NA())","v":{"$error":"#N/A"}},{"$f":"IFERROR(AVERAGEIFS(date[consum/kilometru],date[DATĂ],G41,date[ACTIVITATE],$J$8),NA())","v":{"$error":"#N/A"}}]
[{"$nulls":5},33,"2012-06-02",{"$f":"SUMIFS(date[KILOMETRI],date[DATĂ],G42,date[ACTIVITATE],$H$8)","v":0},{"$f":"IFERROR(AVERAGEIFS(date[Consum/100 km],date[DATĂ],G42,date[ACTIVITATE],$I$8),NA())","v":{"$error":"#N/A"}},{"$f":"IFERROR(AVERAGEIFS(date[consum/kilometru],date[DATĂ],G42,date[ACTIVITATE],$J$8),NA())","v":{"$error":"#N/A"}}]
[{"$nulls":5},34,{"$f":"G42+1","v":"2012-06-03"},{"$f":"SUMIFS(date[KILOMETRI],date[DATĂ],G43,date[ACTIVITATE],$H$8)","v":0},{"$f":"IFERROR(AVERAGEIFS(date[Consum/100 km],date[DATĂ],G43,date[ACTIVITATE],$I$8),NA())","v":{"$error":"#N/A"}},{"$f":"IFERROR(AVERAGEIFS(date[consum/kilometru],date[DATĂ],G43,date[ACTIVITATE],$J$8),NA())","v":{"$error":"#N/A"}}]
[{"$nulls":5},35,"2012-06-04",{"$f":"SUMIFS(date[KILOMETRI],date[DATĂ],G44,date[ACTIVITATE],$H$8)","v":0},{"$f":"IFERROR(AVERAGEIFS(date[Consum/100 km],date[DATĂ],G44,date[ACTIVITATE],$I$8),NA())","v":{"$error":"#N/A"}},{"$f":"IFERROR(AVERAGEIFS(date[consum/kilometru],date[DATĂ],G44,date[ACTIVITATE],$J$8),NA())","v":{"$error":"#N/A"}}]
[{"$nulls":5},36,"2012-06-05",{"$f":"SUMIFS(date[KILOMETRI],date[DATĂ],G45,date[ACTIVITATE],$H$8)","v":0},{"$f":"IFERROR(AVERAGEIFS(date[Consum/100 km],date[DATĂ],G45,date[ACTIVITATE],$I$8),NA())","v":{"$error":"#N/A"}},{"$f":"IFERROR(AVERAGEIFS(date[consum/kilometru],date[DATĂ],G45,date[ACTIVITATE],$J$8),NA())","v":{"$error":"#N/A"}}]
[{"$nulls":5},37,"2012-06-06",{"$f":"SUMIFS(date[KILOMETRI],date[DATĂ],G46,date[ACTIVITATE],$H$8)","v":0},{"$f":"IFERROR(AVERAGEIFS(date[Consum/100 km],date[DATĂ],G46,date[ACTIVITATE],$I$8),NA())","v":{"$error":"#N/A"}},{"$f":"IFERROR(AVERAGEIFS(date[consum/kilometru],date[DATĂ],G46,date[ACTIVITATE],$J$8),NA())","v":{"$error":"#N/A"}}]
[{"$nulls":5},38,"2012-06-07",{"$f":"SUMIFS(date[KILOMETRI],date[DATĂ],G47,date[ACTIVITATE],$H$8)","v":0},{"$f":"IFERROR(AVERAGEIFS(date[Consum/100 km],date[DATĂ],G47,date[ACTIVITATE],$I$8),NA())","v":{"$error":"#N/A"}},{"$f":"IFERROR(AVERAGEIFS(date[consum/kilometru],date[DATĂ],G47,date[ACTIVITATE],$J$8),NA())","v":{"$error":"#N/A"}}]
[{"$nulls":5},39,"2012-06-08",{"$f":"SUMIFS(date[KILOMETRI],date[DATĂ],G48,date[ACTIVITATE],$H$8)","v":0},{"$f":"IFERROR(AVERAGEIFS(date[Consum/100 km],date[DATĂ],G48,date[ACTIVITATE],$I$8),NA())","v":{"$error":"#N/A"}},{"$f":"IFERROR(AVERAGEIFS(date[consum/kilometru],date[DATĂ],G48,date[ACTIVITATE],$J$8),NA())","v":{"$error":"#N/A"}}]
[{"$nulls":5},40,"2012-06-09",{"$f":"SUMIFS(date[KILOMETRI],date[DATĂ],G49,date[ACTIVITATE],$H$8)","v":0},{"$f":"IFERROR(AVERAGEIFS(date[Consum/100 km],date[DATĂ],G49,date[ACTIVITATE],$I$8),NA())","v":{"$error":"#N/A"}},{"$f":"IFERROR(AVERAGEIFS(date[consum/kilometru],date[DATĂ],G49,date[ACTIVITATE],$J$8),NA())","v":{"$error":"#N/A"}}]
[{"$nulls":5},41,"2012-06-10",{"$f":"SUMIFS(date[KILOMETRI],date[DATĂ],G50,date[ACTIVITATE],$H$8)","v":0},{"$f":"IFERROR(AVERAGEIFS(date[Consum/100 km],date[DATĂ],G50,date[ACTIVITATE],$I$8),NA())","v":{"$error":"#N/A"}},{"$f":"IFERROR(AVERAGEIFS(date[consum/kilometru],date[DATĂ],G50,date[ACTIVITATE],$J$8),NA())","v":{"$error":"#N/A"}}]
[{"$nulls":5},42,"2012-06-11",{"$f":"SUMIFS(date[KILOMETRI],date[DATĂ],G51,date[ACTIVITATE],$H$8)","v":0},{"$f":"IFERROR(AVERAGEIFS(date[Consum/100 km],date[DATĂ],G51,date[ACTIVITATE],$I$8),NA())","v":{"$error":"#N/A"}},{"$f":"IFERROR(AVERAGEIFS(date[consum/kilometru],date[DATĂ],G51,date[ACTIVITATE],$J$8),NA())","v":{"$error":"#N/A"}}]
[{"$nulls":5},43,"2012-06-12",{"$f":"SUMIFS(date[KILOMETRI],date[DATĂ],G52,date[ACTIVITATE],$H$8)","v":0},{"$f":"IFERROR(AVERAGEIFS(date[Consum/100 km],date[DATĂ],G52,date[ACTIVITATE],$I$8),NA())","v":{"$error":"#N/A"}},{"$f":"IFERROR(AVERAGEIFS(date[consum/kilometru],date[DATĂ],G52,date[ACTIVITATE],$J$8),NA())","v":{"$error":"#N/A"}}]
[{"$nulls":5},44,"2012-06-13",{"$f":"SUMIFS(date[KILOMETRI],date[DATĂ],G53,date[ACTIVITATE],$H$8)","v":0},{"$f":"IFERROR(AVERAGEIFS(date[Consum/100 km],date[DATĂ],G53,date[ACTIVITATE],$I$8),NA())","v":{"$error":"#N/A"}},{"$f":"IFERROR(AVERAGEIFS(date[consum/kilometru],date[DATĂ],G53,date[ACTIVITATE],$J$8),NA())","v":{"$error":"#N/A"}}]
[{"$nulls":5},45,"2012-06-14",{"$f":"SUMIFS(date[KILOMETRI],date[DATĂ],G54,date[ACTIVITATE],$H$8)","v":0},{"$f":"IFERROR(AVERAGEIFS(date[Consum/100 km],date[DATĂ],G54,date[ACTIVITATE],$I$8),NA())","v":{"$error":"#N/A"}},{"$f":"IFERROR(AVERAGEIFS(date[consum/kilometru],date[DATĂ],G54,date[ACTIVITATE],$J$8),NA())","v":{"$error":"#N/A"}}]
[{"$nulls":5},46,"2012-06-15",{"$f":"SUMIFS(date[KILOMETRI],date[DATĂ],G55,date[ACTIVITATE],$H$8)","v":0},{"$f":"IFERROR(AVERAGEIFS(date[Consum/100 km],date[DATĂ],G55,date[ACTIVITATE],$I$8),NA())","v":{"$error":"#N/A"}},{"$f":"IFERROR(AVERAGEIFS(date[consum/kilometru],date[DATĂ],G55,date[ACTIVITATE],$J$8),NA())","v":{"$error":"#N/A"}}]
[{"$nulls":5},47,"2012-06-16",{"$f":"SUMIFS(date[KILOMETRI],date[DATĂ],G56,date[ACTIVITATE],$H$8)","v":0},{"$f":"IFERROR(AVERAGEIFS(date[Consum/100 km],date[DATĂ],G56,date[ACTIVITATE],$I$8),NA())","v":{"$error":"#N/A"}},{"$f":"IFERROR(AVERAGEIFS(date[consum/kilometru],date[DATĂ],G56,date[ACTIVITATE],$J$8),NA())","v":{"$error":"#N/A"}}]
[{"$nulls":5},48,"2012-06-17",{"$f":"SUMIFS(date[KILOMETRI],date[DATĂ],G57,date[ACTIVITATE],$H$8)","v":0},{"$f":"IFERROR(AVERAGEIFS(date[Consum/100 km],date[DATĂ],G57,date[ACTIVITATE],$I$8),NA())","v":{"$error":"#N/A"}},{"$f":"IFERROR(AVERAGEIFS(date[consum/kilometru],date[DATĂ],G57,date[ACTIVITATE],$J$8),NA())","v":{"$error":"#N/A"}}]
[{"$nulls":5},49,"2012-06-18",{"$f":"SUMIFS(date[KILOMETRI],date[DATĂ],G58,date[ACTIVITATE],$H$8)","v":0},{"$f":"IFERROR(AVERAGEIFS(date[Consum/100 km],date[DATĂ],G58,date[ACTIVITATE],$I$8),NA())","v":{"$error":"#N/A"}},{"$f":"IFERROR(AVERAGEIFS(date[consum/kilometru],date[DATĂ],G58,date[ACTIVITATE],$J$8),NA())","v":{"$error":"#N/A"}}]
[{"$nulls":5},50,"2012-06-19",{"$f":"SUMIFS(date[KILOMETRI],date[DATĂ],G59,date[ACTIVITATE],$H$8)","v":0},{"$f":"IFERROR(AVERAGEIFS(date[Consum/100 km],date[DATĂ],G59,date[ACTIVITATE],$I$8),NA())","v":{"$error":"#N/A"}},{"$f":"IFERROR(AVERAGEIFS(date[consum/kilometru],date[DATĂ],G59,date[ACTIVITATE],$J$8),NA())","v":{"$error":"#N/A"}}]
[{"$nulls":5},51,"2012-06-20",{"$f":"SUMIFS(date[KILOMETRI],date[DATĂ],G60,date[ACTIVITATE],$H$8)","v":0},{"$f":"IFERROR(AVERAGEIFS(date[Consum/100 km],date[DATĂ],G60,date[ACTIVITATE],$I$8),NA())","v":{"$error":"#N/A"}},{"$f":"IFERROR(AVERAGEIFS(date[consum/kilometru],date[DATĂ],G60,date[ACTIVITATE],$J$8),NA())","v":{"$error":"#N/A"}}]
[{"$nulls":5},52,"2012-06-21",{"$f":"SUMIFS(date[KILOMETRI],date[DATĂ],G61,date[ACTIVITATE],$H$8)","v":0},{"$f":"IFERROR(AVERAGEIFS(date[Consum/100 km],date[DATĂ],G61,date[ACTIVITATE],$I$8),NA())","v":{"$error":"#N/A"}},{"$f":"IFERROR(AVERAGEIFS(date[consum/kilometru],date[DATĂ],G61,date[ACTIVITATE],$J$8),NA())","v":{"$error":"#N/A"}}]
[{"$nulls":5},53,"2012-06-22",{"$f":"SUMIFS(date[KILOMETRI],date[DATĂ],G62,date[ACTIVITATE],$H$8)","v":0},{"$f":"IFERROR(AVERAGEIFS(date[Consum/100 km],date[DATĂ],G62,date[ACTIVITATE],$I$8),NA())","v":{"$error":"#N/A"}},{"$f":"IFERROR(AVERAGEIFS(date[consum/kilometru],date[DATĂ],G62,date[ACTIVITATE],$J$8),NA())","v":{"$error":"#N/A"}}]
[{"$nulls":5},54,"2012-06-23",{"$f":"SUMIFS(date[KILOMETRI],date[DATĂ],G63,date[ACTIVITATE],$H$8)","v":0},{"$f":"IFERROR(AVERAGEIFS(date[Consum/100 km],date[DATĂ],G63,date[ACTIVITATE],$I$8),NA())","v":{"$error":"#N/A"}},{"$f":"IFERROR(AVERAGEIFS(date[consum/kilometru],date[DATĂ],G63,date[ACTIVITATE],$J$8),NA())","v":{"$error":"#N/A"}}]
[{"$nulls":5},55,"2012-06-24",{"$f":"SUMIFS(date[KILOMETRI],date[DATĂ],G64,date[ACTIVITATE],$H$8)","v":0},{"$f":"IFERROR(AVERAGEIFS(date[Consum/100 km],date[DATĂ],G64,date[ACTIVITATE],$I$8),NA())","v":{"$error":"#N/A"}},{"$f":"IFERROR(AVERAGEIFS(date[consum/kilometru],date[DATĂ],G64,date[ACTIVITATE],$J$8),NA())","v":{"$error":"#N/A"}}]
[{"$nulls":5},56,"2012-06-25",{"$f":"SUMIFS(date[KILOMETRI],date[DATĂ],G65,date[ACTIVITATE],$H$8)","v":0},{"$f":"IFERROR(AVERAGEIFS(date[Consum/100 km],date[DATĂ],G65,date[ACTIVITATE],$I$8),NA())","v":{"$error":"#N/A"}},{"$f":"IFERROR(AVERAGEIFS(date[consum/kilometru],date[DATĂ],G65,date[ACTIVITATE],$J$8),NA())","v":{"$error":"#N/A"}}]
[{"$nulls":5},57,"2012-06-26",{"$f":"SUMIFS(date[KILOMETRI],date[DATĂ],G66,date[ACTIVITATE],$H$8)","v":0},{"$f":"IFERROR(AVERAGEIFS(date[Consum/100 km],date[DATĂ],G66,date[ACTIVITATE],$I$8),NA())","v":{"$error":"#N/A"}},{"$f":"IFERROR(AVERAGEIFS(date[consum/kilometru],date[DATĂ],G66,date[ACTIVITATE],$J$8),NA())","v":{"$error":"#N/A"}}]
[{"$nulls":5},58,"2012-06-27",{"$f":"SUMIFS(date[KILOMETRI],date[DATĂ],G67,date[ACTIVITATE],$H$8)","v":0},{"$f":"IFERROR(AVERAGEIFS(date[Consum/100 km],date[DATĂ],G67,date[ACTIVITATE],$I$8),NA())","v":{"$error":"#N/A"}},{"$f":"IFERROR(AVERAGEIFS(date[consum/kilometru],date[DATĂ],G67,date[ACTIVITATE],$J$8),NA())","v":{"$error":"#N/A"}}]
[{"$nulls":5},59,"2012-06-28",{"$f":"SUMIFS(date[KILOMETRI],date[DATĂ],G68,date[ACTIVITATE],$H$8)","v":0},{"$f":"IFERROR(AVERAGEIFS(date[Consum/100 km],date[DATĂ],G68,date[ACTIVITATE],$I$8),NA())","v":{"$error":"#N/A"}},{"$f":"IFERROR(AVERAGEIFS(date[consum/kilometru],date[DATĂ],G68,date[ACTIVITATE],$J$8),NA())","v":{"$error":"#N/A"}}]
[{"$nulls":5},60,"2012-06-29",{"$f":"SUMIFS(date[KILOMETRI],date[DATĂ],G69,date[ACTIVITATE],$H$8)","v":0},{"$f":"IFERROR(AVERAGEIFS(date[Consum/100 km],date[DATĂ],G69,date[ACTIVITATE],$I$8),NA())","v":{"$error":"#N/A"}},{"$f":"IFERROR(AVERAGEIFS(date[consum/kilometru],date[DATĂ],G69,date[ACTIVITATE],$J$8),NA())","v":{"$error":"#N/A"}}]